Workbook

Sheet ST1-Budget
B2: Table 1: Stocker Budget, 200 Head - 2020 | O2: EBB-ST1-20
B3: Wintered to Go to Grass, Bought in Winter, Sold in Fall | L3: No. of Head: | M3: 200
H5: Total Number
D6: Weight | H6: of Head | J6: Price or | L6: Total | M6: Value or
D7: Each | F7: Unit | H7: or Units | J7: Cost/Unit | L7: Value | M7: Cost/Head | O7: Your Value
C8: GROSS RETURNS
C9: Steers | D9: 900 | F9: lbs | H9: 198 | J9: 1.35 | L9: =D9*H9*J9 -> 240570 | M9: =L9/$M$3 -> 1202.85
C11: TOTAL GROSS RETURNS | L11: =SUM(L9:L10) -> 240570 | M11: =SUM(M9:M10) -> 1202.85
C13: OPERATING COSTS
C14: Purchased Steers | D14: 500 | F14: lbs | H14: 200 | J14: 1.65 | L14: =D14*H14*J14 -> 165000 | M14: =L14/$M$3 -> 825
C15: Alfalfa Hay | F15: ton | H15: 94 | J15: 150 | L15: =H15*J15 -> 14100 | M15: =L15/$M$3 -> 70.5
C16: Feed Barley | F16: cwt | H16: 825 | J16: 13 | L16: =H16*J16 -> 10725 | M16: =L16/$M$3 -> 53.625
C17: Yardage | F17: day | H17: 15000 | J17: 0.35 | L17: 5250 | M17: 26.25
C18: Private Range | F18: head | H18: 300 | J18: 16 | L18: 4800 | M18: 24
C19: Pasture | F19: head | H19: 900 | J19: 20 | L19: =H19*J19 -> 18000 | M19: 90
C20: Hauling | F20: head | H20: 200 | J20: 15 | L20: 3000 | M20: 15
C21: Veterinary | F21: head | H21: 200 | J21: =Vet!R12*1.25 -> 6.5625 | L21: 1312.5 | M21: 6.5625
C22: Hired Labor | F22: hour | H22: 100 | J22: 17.5 | L22: =H22*J22 -> 1750 | M22: 8.75
C23: Salt/Mineral | F23: cwt | H23: 12 | J23: 13 | L23: 156 | M23: 0.78
C24: Marketing | F24: head | H24: 198 | J24: =M9*0.025 -> 30.07125 | L24: 5954.1075 | M24: 29.7705375
C25: Miscellaneous | F25: head | H25: 200 | J25: 10 | L25: 2000 | M25: 10
C27: Interest on Operating Capital | F27: $ | H27: =SUM(L14:L26)*0.5 -> 116023.8038 | J27: 0.07 | L27: =H27*J27*0.75 -> 6091.249697 | M27: 30.45624848
C28: TOTAL OPERATING COSTS | L28: =SUM(L14:L27) -> 238138.8572 | M28: 1190.694286
C30: NET RETURNS ABOVE OPERATING COSTS | L30: =L11-L28 -> 2431.142803 | M30: =L30/$M$3 -> 12.15571402

Sheet Monthly Flows
B2: Table 2: Monthly Summary of Returns and Expenses. | P2: EBB-ST1-20
D3: Jan | E3: Feb | F3: Mar | G3: Apr | H3: May | I3: Jun | J3: Jul | K3: Aug | L3: Sep | M3: Oct | N3: Nov | O3: Dec | P3: Value
B5: Production:
C6: Steers | L6: =P6 -> 240570 | P6: ='ST1-Budget'!L9 -> 240570
B8: Total Receipts | D8: =SUM(D6:D7) -> 0 | E8: 0 | F8: 0 | G8: 0 | H8: 0 | I8: 0 | J8: 0 | K8: 0 | L8: 240570 | M8: 0 | N8: 0 | O8: 0 | P8: ='ST1-Budget'!L11 -> 240570
B11: Operating Inputs:
C12: Purchased Steers | D12: =P12 -> 165000 | P12: ='ST1-Budget'!L14 -> 165000
C13: Alfalfa Hay | D13: =P13*0.2 -> 2820 | E13: =P13*0.4 -> 5640 | F13: =P13*0.4 -> 5640 | P13: ='ST1-Budget'!L15 -> 14100
C14: Feed Barley | D14: =P14*0.2 -> 2145 | E14: =P14*0.4 -> 4290 | F14: =P14*0.4 -> 4290 | P14: ='ST1-Budget'!L16 -> 10725
C15: Yardage | D15: =P15*0.2 -> 1050 | E15: =P15*0.4 -> 2100 | F15: =P15*0.4 -> 2100 | P15: ='ST1-Budget'!L17 -> 5250
C16: Private Range | G16: =P16*0.6666 -> 3199.68 | H16: =P16*0.3333 -> 1599.84 | P16: ='ST1-Budget'!L18 -> 4800
C17: Pasture | H17: =P17*0.1111 -> 1999.8 | I17: =P17*0.2222 -> 3999.6 | J17: =P17*0.2222 -> 3999.6 | K17: =P17*0.2222 -> 3999.6 | L17: =P17*0.2222 -> 3999.6 | P17: ='ST1-Budget'!L19 -> 18000
C18: Hauling | G18: =P18*0.5 -> 1500 | I18: =P18*0.5 -> 1500 | P18: ='ST1-Budget'!L20 -> 3000
C19: Veterinary | D19: =P19*0.5 -> 656.25 | F19: =P19*0.5 -> 656.25 | P19: ='ST1-Budget'!L21 -> 1312.5
C20: Hired Labor | D20: =0.5*P20 -> 875 | G20: =0.25*P20 -> 437.5 | I20: =0.25*P20 -> 437.5 | P20: ='ST1-Budget'!L22 -> 1750
C21: Salt/Mineral | G21: =$P$21*0.2 -> 31.2 | H21: =$P$21*0.2 -> 31.2 | I21: 31.2 | J21: 31.2 | K21: 31.2 | P21: ='ST1-Budget'!L23 -> 156
C22: Marketing | L22: =P22 -> 5954.1075 | P22: ='ST1-Budget'!L24 -> 5954.1075
C23: Miscellaneous | E23: =$P$23*0.125 -> 250 | F23: =$P$23*0.125 -> 250 | G23: 250 | H23: 250 | I23: 250 | J23: 250 | K23: 250 | L23: 250 | P23: ='ST1-Budget'!L25 -> 2000
C24: Interest on Operating Capital | L24: =P24 -> 6091.249697 | P24: ='ST1-Budget'!L27 -> 6091.249697
B26: Total Costs | D26: =SUM(D12:D23) -> 172546.25 | E26: 12280 | F26: 12936.25 | G26: 5418.38 | H26: 3880.84 | I26: 6218.3 | J26: 4280.8 | K26: 4280.8 | L26: 10203.7075 | M26: 0 | N26: 0 | O26: 0 | P26: =SUM(P12:P24) -> 238138.8572
B29: Net Returns | D29: =D8-D26 -> -172546.25 | E29: -12280 | F29: -12936.25 | G29: -5418.38 | H29: -3880.84 | I29: -6218.3 | J29: -4280.8 | K29: -4280.8 | L29: 230366.2925 | M29: 0 | N29: 0 | O29: 0 | P29: 2431.142803
B33: Table 3: Monthly Feed Requirements.
B34: Feed | D34: Units | E34: Jan | F34: Feb | G34: Mar | H34: Apr | I34: May | J34: Jun | K34: Jul | L34: Aug | M34: Sep | N34: Oct | O34: Nov | P34: Dec
B36: Alfalfa Hay | D36: ton | E36: 19 | F36: 38 | G36: 38
B37: Feed Barley | D37: cwt | E37: 165 | F37: 330 | G37: 330
B38: Private Range | D38: head | H38: 200 | I38: 100
B39: Pasture | D39: head | I39: 100 | J39: 200 | K39: 200 | L39: 200 | M39: 200
B40: Salt/Mineral | D40: cwt | H40: 2 | I40: 2 | J40: 2 | K40: 2 | L40: 2 | M40: 2

Sheet Vet
A1: Veterinary Expenses
B4: Number of Head | D4: Units | E4: $/Unit | F4: Jan | G4: Feb | H4: Mar | I4: Apr | J4: May | K4: Jun | L4: Jul | M4: Aug | N4: Sep | O4: Oct | P4: Nov | Q4: Dec | R4: Total
A5: Steer Calves | B5: 200
A6: Respiratory Viral | D6: dose | E6: 1.8 | F6: 1 | R6: =SUM(F6:Q6)*$B$5*E6 -> 360
A7: 8 Way | D7: dose | E7: 0.9 | F7: 1 | R7: =SUM(F7:Q7)*$B$5*E7 -> 180
A8: Pour-On | D8: dose | E8: 0.5 | F8: 1 | I8: 1 | R8: =SUM(F8:Q8)*$B$5*E8 -> 200
A9: Implant | D9: head | E9: 1.55 | F9: 1 | R9: =SUM(F9:Q9)*$B$5*E9 -> 310
Q10: Total | R10: =SUM(R6:R9) -> 1050
Q12: $/Hd | R12: =R10/B5 -> 5.25
